[Event "Saint Louis Masters"]
[Date "2024.12.04"]
[White "Hakobyan, Aram"]
[Black "Caruana, Fabiano"]
[WhiteElo "2625"]
[BlackElo "2805"]
[Round "3.1"]
[Result "1/2-1/2"]
[TimeControl "5400+30"]

1. d4 {[%clk 01:30:13] [%emt 00:00:45]} Nf6 {[%clk 01:30:48] [%emt 00:00:13]} 2.
c4 {[%clk 01:30:35] [%emt 00:00:09]} e6 {[%clk 01:31:03] [%emt 00:00:15]} 3. Nf3
{[%clk 01:30:39] [%emt 00:00:25]} d5 {[%clk 01:30:26] [%emt 00:01:08]} 4. Nc3
{[%clk 01:30:57] [%emt 00:00:12]} a6 {[%clk 01:30:39] [%emt 00:00:17]} 5. c5
{[%clk 01:31:12] [%emt 00:00:14]} Be7 {[%clk 01:30:32] [%emt 00:00:37]} 6. Bf4
{[%clk 01:30:05] [%emt 00:01:37]} Nh5 {[%clk 01:30:44] [%emt 00:00:18]} 7. Be5
{[%clk 01:20:03] [%emt 00:10:33]} Nc6 {[%clk 01:20:05] [%emt 00:11:09]} 8. e3
{[%clk 01:20:26] [%emt 00:00:07]} b6 {[%clk 01:13:12] [%emt 00:07:23]} 9. b4
{[%clk 01:10:05] [%emt 00:10:51]} O-O {[%clk 01:08:11] [%emt 00:05:31]} 10. a3
{[%clk 01:09:05] [%emt 00:01:30]} g6 {[%clk 00:56:09] [%emt 00:12:32]} 11. h3
{[%clk 00:52:49] [%emt 00:16:45]} Nxe5 {[%clk 00:50:05] [%emt 00:06:35]} 12.
Nxe5 {[%clk 00:52:31] [%emt 00:00:47]} Bf6 {[%clk 00:49:47] [%emt 00:00:49]} 13.
Nd3 {[%clk 00:51:31] [%emt 00:01:29]} Ng7 {[%clk 00:49:27] [%emt 00:00:50]} 14.
Be2 {[%clk 00:48:59] [%emt 00:03:03]} Nf5 {[%clk 00:49:09] [%emt 00:00:48]} 15.
O-O {[%clk 00:44:06] [%emt 00:05:22]} Bg7 {[%clk 00:48:39] [%emt 00:01:01]} 16.
Rc1 {[%clk 00:33:31] [%emt 00:11:05]} Bd7 {[%clk 00:43:18] [%emt 00:05:51]} 17.
Qd2 {[%clk 00:28:39] [%emt 00:05:21]} h5 {[%clk 00:42:17] [%emt 00:01:33]} 18.
Rfd1 {[%clk 00:25:45] [%emt 00:03:23]} Qg5 {[%clk 00:30:55] [%emt 00:11:52]} 19.
Ne1 {[%clk 00:24:11] [%emt 00:02:04]} a5 {[%clk 00:28:54] [%emt 00:02:31]} 20.
Nf3 {[%clk 00:24:18] [%emt 00:00:23]} Qe7 {[%clk 00:29:21] [%emt 00:00:04]} 21.
Bd3 {[%clk 00:23:00] [%emt 00:01:47]} axb4 {[%clk 00:29:21] [%emt 00:00:30]} 22.
axb4 {[%clk 00:23:19] [%emt 00:00:12]} Nh4 {[%clk 00:28:34] [%emt 00:01:16]} 23.
Nxh4 {[%clk 00:20:16] [%emt 00:03:33]} Qxh4 {[%clk 00:29:01] [%emt 00:00:03]}
24. Nb5 {[%clk 00:09:31] [%emt 00:11:16]} Rfc8 {[%clk 00:28:36] [%emt 00:00:55]}
25. c6 {[%clk 00:08:45] [%emt 00:01:16]} Be8 {[%clk 00:29:02] [%emt 00:00:03]}
26. Ra1 {[%clk 00:06:14] [%emt 00:03:01]} Qe7 {[%clk 00:28:43] [%emt 00:00:49]}
27. Qc3 {[%clk 00:05:33] [%emt 00:01:10]} Bf8 {[%clk 00:28:53] [%emt 00:00:21]}
28. Na7 {[%clk 00:04:23] [%emt 00:01:40]} Rd8 {[%clk 00:27:10] [%emt 00:02:13]}
29. Ra4 {[%clk 00:04:41] [%emt 00:00:13]} Bg7 {[%clk 00:25:12] [%emt 00:02:28]}
30. Rda1 {[%clk 00:04:45] [%emt 00:00:25]} Rd6 {[%clk 00:25:27] [%emt 00:00:15]}
31. Be2 {[%clk 00:00:31] [%emt 00:04:44]} e5 {[%clk 00:25:46] [%emt 00:00:12]}
32. Bf3 {[%clk 00:00:57] [%emt 00:00:04]} Qg5 {[%clk 00:20:54] [%emt 00:05:22]}
33. Nb5 {[%clk 00:00:35] [%emt 00:00:52]} Rxa4 {[%clk 00:21:02] [%emt 00:00:22]}
34. Nxd6 {[%clk 00:00:55] [%emt 00:00:09]} exd4 {[%clk 00:16:35] [%emt
00:04:56]} 35. exd4 {[%clk 00:01:24]} Rxa1+ {[%clk 00:17:00] [%emt 00:00:05]}
36. Qxa1 {[%clk 00:01:53] [%emt 00:00:01]} cxd6 {[%clk 00:13:11] [%emt
00:04:18]} 37. c7 {[%clk 00:01:24] [%emt 00:01:00]} Bd7 {[%clk 00:13:39] [%emt
00:00:02]} 38. Qa8+ {[%clk 00:01:47] [%emt 00:00:06]} Kh7 {[%clk 00:14:06] [%emt
00:00:03]} 39. c8=Q {[%clk 00:02:12] [%emt 00:00:05]} Bxc8 {[%clk 00:14:34]
[%emt 00:00:03]} 40. Qxc8 {[%clk 00:02:37] [%emt 00:00:04]} Qd2 {[%clk 00:11:46]
[%emt 00:03:18]} 41. Qe8 {[%clk 00:00:41] [%emt 00:02:27]} f5 {[%clk 00:08:29]
[%emt 00:03:47]} 42. b5 {[%clk 00:00:39] [%emt 00:00:31]} Bxd4 {[%clk 00:08:11]
[%emt 00:00:48]} 43. Qe2 {[%clk 00:00:31] [%emt 00:00:38]} Qc1+ {[%clk 00:07:30]
[%emt 00:01:12]} 44. Qd1 {[%clk 00:01:00]} Qc5 {[%clk 00:06:46] [%emt 00:01:15]}
45. Qd2 {[%clk 00:01:17] [%emt 00:00:12]} h4 {[%clk 00:06:38] [%emt 00:00:39]}
46. Qe1 {[%clk 00:00:50] [%emt 00:00:55]} Be5 {[%clk 00:06:38] [%emt 00:00:32]}
47. Qf1 {[%clk 00:00:57] [%emt 00:00:22]} Kg7 {[%clk 00:06:56] [%emt 00:00:12]}
48. Qd3 {[%clk 00:00:53] [%emt 00:00:33]} Bd4 {[%clk 00:07:23] [%emt 00:00:04]}
49. Qd2 {[%clk 00:01:06] [%emt 00:00:16]} Kf6 {[%clk 00:07:00] [%emt 00:00:54]}
50. Bd1 {[%clk 00:01:35]} g5 {[%clk 00:06:15] [%emt 00:01:16]} 51. Bc2 {[%clk
00:01:33] [%emt 00:00:31]} Be5 {[%clk 00:05:18] [%emt 00:01:28]} 52. Qd3 {[%clk
00:01:49] [%emt 00:00:14]} Qc8 {[%clk 00:05:46] [%emt 00:00:02]} 53. Kh1 {[%clk
00:01:34] [%emt 00:00:45]} Qe6 {[%clk 00:05:23] [%emt 00:00:54]} 54. Qe3 {[%clk
00:01:30] [%emt 00:00:34]} d4 {[%clk 00:04:47] [%emt 00:01:06]} 55. Qd3 {[%clk
00:01:59]} Kg6 {[%clk 00:04:59] [%emt 00:00:19]} 56. g4 {[%clk 00:01:05] [%emt
00:01:24]} hxg3 {[%clk 00:05:22] [%emt 00:00:06]} 57. fxg3 {[%clk 00:01:34]
[%emt 00:00:02]} Kf6 {[%clk 00:03:11] [%emt 00:02:41]} 58. g4 {[%clk 00:01:53]
[%emt 00:00:10]} fxg4 {[%clk 00:03:26] [%emt 00:00:15]} 59. Qg6+ {[%clk
00:02:15] [%emt 00:00:08]} Ke7 {[%clk 00:03:55] [%emt 00:00:02]} 60. Qxe6+
{[%clk 00:01:15] [%emt 00:01:30]} Kxe6 {[%clk 00:04:22] [%emt 00:00:02]} 61.
hxg4 {[%clk 00:01:43] [%emt 00:00:02]} d3 {[%clk 00:04:34] [%emt 00:00:18]} 62.
Bxd3 {[%clk 00:02:03] [%emt 00:00:10]} Kd5 {[%clk 00:05:02] [%emt 00:00:03]} 63.
Kg2 {[%clk 00:02:20] [%emt 00:00:12]} Kd4 {[%clk 00:05:29] [%emt 00:00:03]} 64.
Bf5 {[%clk 00:01:19] [%emt 00:01:30]} Kc4 {[%clk 00:05:40] [%emt 00:00:20]} 65.
Bd7 {[%clk 00:01:43] [%emt 00:00:06]} d5 {[%clk 00:06:06] [%emt 00:00:04]} 66.
Kf2 {[%clk 00:01:24] [%emt 00:00:49]} d4 {[%clk 00:06:32] [%emt 00:00:04]}
1/2-1/2

[Site "Europe Echecs"]

[Event "Saint Louis Masters"]
[Date "2024.12.04"]
[White "Shankland, Sam"]
[Black "Zhou, Jianchao"]
[WhiteElo "2672"]
[BlackElo "2572"]
[Round "3.2"]
[Result "1-0"]
[TimeControl "5400+30"]

1. e4 {[%clk 01:30:59]} c5 {[%clk 01:13:51] [%emt 00:17:10]} 2. Nf3 {[%clk
01:31:24] [%emt 00:00:04]} d6 {[%clk 01:11:29] [%emt 00:02:52]} 3. d4 {[%clk
01:31:49] [%emt 00:00:05]} cxd4 {[%clk 01:11:54] [%emt 00:00:06]} 4. Nxd4 {[%clk
01:32:15] [%emt 00:00:03]} Nf6 {[%clk 01:12:16] [%emt 00:00:08]} 5. Nc3 {[%clk
01:32:41] [%emt 00:00:04]} a6 {[%clk 01:12:44] [%emt 00:00:02]} 6. Be3 {[%clk
01:33:00] [%emt 00:00:10]} e5 {[%clk 01:12:46] [%emt 00:00:28]} 7. Nb3 {[%clk
01:33:25] [%emt 00:00:05]} Be7 {[%clk 01:12:45] [%emt 00:00:31]} 8. f3 {[%clk
01:33:25] [%emt 00:00:30]} Be6 {[%clk 01:11:49] [%emt 00:01:26]} 9. Qd2 {[%clk
01:33:47] [%emt 00:00:09]} O-O {[%clk 01:12:12] [%emt 00:00:07]} 10. O-O-O
{[%clk 01:34:10] [%emt 00:00:07]} Nbd7 {[%clk 01:12:23] [%emt 00:00:19]} 11. g4
{[%clk 01:34:31] [%emt 00:00:08]} b5 {[%clk 01:12:46] [%emt 00:00:08]} 12. g5
{[%clk 01:34:51] [%emt 00:00:10]} Nh5 {[%clk 01:13:12] [%emt 00:00:03]} 13. Kb1
{[%clk 01:34:57] [%emt 00:00:25]} Nb6 {[%clk 01:12:31] [%emt 00:01:11]} 14. Na5
{[%clk 01:35:19] [%emt 00:00:08]} Rc8 {[%clk 01:11:28] [%emt 00:01:33]} 15. a3
{[%clk 01:35:23] [%emt 00:00:26]} Qc7 {[%clk 01:07:31] [%emt 00:04:27]} 16. Nd5
{[%clk 01:32:06] [%emt 00:03:47]} Nxd5 {[%clk 01:07:50] [%emt 00:00:11]} 17.
exd5 {[%clk 01:32:31]} Bxd5 {[%clk 01:07:25] [%emt 00:01:01]} 18. Qxd5 {[%clk
01:32:55]} Qxa5 {[%clk 01:07:43] [%emt 00:00:17]} 19. Rg1 {[%clk 01:30:06]} g6
{[%clk 01:04:32] [%emt 00:06:59]} 20. Rg4 {[%clk 01:24:13]} Nf4 {[%emt
00:28:26]} 21. Bxf4 exf4 22. h4 Rc5 23. Qb3 d5 24. Rxf4 Qc7 25. Rfd4 Qh2 {[%clk
00:43:00]} 26. f4 {[%clk 01:04:43] [%emt 00:27:10]} Rd8 {[%clk 00:38:29] [%emt
00:02:51]} 27. f5 {[%clk 01:00:16]} gxf5 {[%clk 00:35:15] [%emt 00:08:41]} 28.
Qd3 {[%clk 00:49:20] [%emt 00:11:26]} Qf2 {[%clk 00:19:33] [%emt 00:16:12]} 29.
Rd2 {[%clk 00:42:41] [%emt 00:07:09]} Qe1+ {[%clk 00:19:08] [%emt 00:00:54]} 30.
Ka2 {[%clk 00:41:42] [%emt 00:01:30]} Rc4 {[%clk 00:18:52] [%emt 00:00:46]} 31.
Qxf5 {[%clk 00:40:04] [%emt 00:02:08]} Rxd4 {[%clk 00:19:17] [%emt 00:00:05]}
32. Rxd4 {[%clk 00:40:31] [%emt 00:00:03]} Qe6 {[%clk 00:19:14] [%emt 00:00:33]}
33. Qf3 {[%clk 00:39:00]} Qe5 {[%clk 00:19:12] [%emt 00:02:33]} 34. Rf4 {[%clk
00:36:45] [%emt 00:02:45]} Bf8 {[%clk 00:16:37] [%emt 00:03:05]} 35. Rf5 {[%clk
00:36:04]} Qe7 {[%clk 00:14:20] [%emt 00:03:59]} 36. Bd3 {[%clk 00:34:11]} Bg7
{[%clk 00:10:41] [%emt 00:06:32]} 37. Qh5 {[%clk 00:29:27] [%emt 00:05:13]} Qe6
{[%clk 00:10:41] [%emt 00:00:31]} 38. Rf1 {[%clk 00:28:08] [%emt 00:01:49]} h6
{[%clk 00:11:05] [%emt 00:00:06]} 39. gxh6 {[%clk 00:25:49] [%emt 00:02:49]}
Bxh6 {[%clk 00:11:29] [%emt 00:00:06]} 40. Bf5 {[%clk 00:24:44] [%emt 00:01:34]}
Qc6 {[%clk 00:11:33] [%emt 00:00:25]} 41. Bh3 {[%clk 00:21:43] [%emt 00:03:32]}
Rf8 {[%clk 00:10:05] [%emt 00:01:59]} 42. Rg1+ {[%clk 00:21:29] [%emt 00:00:43]}
Kh7 {[%clk 00:08:09] [%emt 00:02:27]} 43. Qf5+ {[%clk 00:21:43] [%emt 00:00:15]}
Kh8 {[%clk 00:08:37] [%emt 00:00:02]} 44. Qe5+ {[%clk 00:22:05] [%emt 00:00:09]}
1-0

[Site "Europe Echecs"]

[Event "Saint Louis Masters"]
[Date "2024.12.04"]
[White "Robson, Ray"]
[Black "Stremavicius, Titas"]
[WhiteElo "2700"]
[BlackElo "2567"]
[Round "3.3"]
[Result "1/2-1/2"]
[TimeControl "5400+30"]

1. e4 {[%clk 01:26:53] [%emt 00:03:53]} c6 {[%clk 01:30:54] [%emt 00:00:19]} 2.
d4 {[%clk 01:25:36] [%emt 00:01:48]} d5 {[%clk 01:31:16] [%emt 00:00:07]} 3. e5
{[%clk 01:24:54] [%emt 00:01:13]} Bf5 {[%clk 01:31:37] [%emt 00:00:07]} 4. h4
{[%clk 01:23:08] [%emt 00:02:17]} h5 {[%clk 01:32:00] [%emt 00:00:07]} 5. c4
{[%clk 01:22:37] [%emt 00:01:01]} e6 {[%clk 01:32:09] [%emt 00:00:21]} 6. Nc3
{[%clk 01:22:26] [%emt 00:00:36]} dxc4 {[%clk 01:31:47] [%emt 00:00:56]} 7. Bxc4
{[%clk 01:21:56] [%emt 00:01:01]} Nd7 {[%clk 01:31:57] [%emt 00:00:19]} 8. Nge2
{[%clk 01:20:38] [%emt 00:01:48]} Be7 {[%clk 01:32:02] [%emt 00:00:25]} 9. g3
{[%clk 01:19:10] [%emt 00:01:58]} Qb6 {[%clk 01:24:02] [%emt 00:08:30]} 10. Bd3
{[%clk 01:02:43] [%emt 00:16:57]} Bxd3 {[%clk 01:10:03] [%emt 00:14:29]} 11.
Qxd3 {[%clk 01:03:05] [%emt 00:00:08]} c5 {[%clk 01:04:26] [%emt 00:06:06]} 12.
Bf4 {[%clk 00:30:56] [%emt 00:32:40]} cxd4 {[%clk 00:46:06] [%emt 00:18:50]} 13.
Nxd4 {[%clk 00:31:04] [%emt 00:00:22]} Nh6 {[%clk 00:46:05] [%emt 00:00:32]} 14.
Bxh6 {[%clk 00:20:36] [%emt 00:10:59]} Rxh6 {[%clk 00:45:48] [%emt 00:00:46]}
15. Nf3 {[%clk 00:20:19] [%emt 00:00:46]} O-O-O {[%clk 00:34:47] [%emt
00:11:31]} 16. Qe2 {[%clk 00:20:14] [%emt 00:00:35]} Nb8 {[%clk 00:28:51] [%emt
00:06:26]} 17. O-O {[%clk 00:10:23] [%emt 00:10:22]} Nc6 {[%clk 00:29:04] [%emt
00:00:17]} 18. a3 {[%clk 00:08:05] [%emt 00:02:48]} Rhh8 {[%clk 00:27:47] [%emt
00:01:47]} 19. b4 {[%clk 00:08:03] [%emt 00:00:32]} Kb8 {[%clk 00:23:57] [%emt
00:04:20]} 20. Rad1 {[%clk 00:03:26] [%emt 00:05:07]} Rxd1 {[%clk 00:22:50]
[%emt 00:01:38]} 21. Rxd1 {[%clk 00:03:41] [%emt 00:00:14]} Rd8 {[%clk 00:23:10]
[%emt 00:00:09]} 22. Rxd8+ {[%clk 00:03:02] [%emt 00:01:11]} Qxd8 {[%clk
00:18:53] [%emt 00:04:46]} 23. Qe4 {[%clk 00:03:04] [%emt 00:00:28]} a6 {[%clk
00:16:38] [%emt 00:02:46]} 24. Kg2 {[%clk 00:02:26] [%emt 00:01:08]} g6 {[%clk
00:16:09] [%emt 00:00:59]} 25. b5 {[%clk 00:02:06] [%emt 00:00:51]} axb5 {[%clk
00:16:12] [%emt 00:00:27]} 26. Nxb5 {[%clk 00:02:31] [%emt 00:00:05]} Qd5 {[%clk
00:12:53] [%emt 00:03:48]} 27. Qxd5 {[%clk 00:02:27] [%emt 00:00:35]} exd5
{[%clk 00:13:19] [%emt 00:00:04]} 28. Kf1 {[%clk 00:01:29] [%emt 00:01:27]} Kc8
{[%clk 00:13:01] [%emt 00:00:48]} 29. Ke2 {[%clk 00:01:01] [%emt 00:00:58]} Kd7
{[%clk 00:12:40] [%emt 00:00:52]} 30. a4 {[%clk 00:01:07] [%emt 00:00:25]}
1/2-1/2

[Site "Europe Echecs"]

[Event "Saint Louis Masters"]
[Date "2024.12.04"]
[White "Cordova, Emilio"]
[Black "Sevian, Samuel"]
[WhiteElo "2531"]
[BlackElo "2696"]
[Round "3.4"]
[Result "1-0"]
[TimeControl "5400+30"]

1. Nf3 {[%clk 01:29:15] [%emt 00:01:43]} d5 {[%clk 01:27:38] [%emt 00:03:19]} 2.
e3 {[%clk 01:27:51] [%emt 00:01:58]} c5 {[%clk 01:25:32] [%emt 00:02:36]} 3. b3
{[%clk 01:25:52] [%emt 00:02:29]} Nc6 {[%clk 01:23:49] [%emt 00:02:13]} 4. Bb2
{[%clk 01:25:45] [%emt 00:00:38]} f6 {[%clk 01:23:10] [%emt 00:01:09]} 5. d4
{[%clk 01:24:15] [%emt 00:02:00]} cxd4 {[%clk 01:22:57] [%emt 00:00:42]} 6. Nxd4
{[%clk 01:24:21] [%emt 00:00:24]} e5 {[%clk 01:23:15] [%emt 00:00:13]} 7. Nxc6
{[%clk 01:24:45] [%emt 00:00:06]} bxc6 {[%clk 01:23:39] [%emt 00:00:06]} 8. c4
{[%clk 01:24:45] [%emt 00:00:29]} Be6 {[%clk 01:23:20] [%emt 00:00:49]} 9. cxd5
{[%clk 01:19:30] [%emt 00:05:46]} cxd5 {[%clk 01:23:23] [%emt 00:00:27]} 10.
Bb5+ {[%clk 01:19:48] [%emt 00:00:12]} Kf7 {[%clk 01:23:46] [%emt 00:00:07]} 11.
O-O {[%clk 01:19:22] [%emt 00:00:56]} Rc8 {[%clk 01:24:09] [%emt 00:00:08]} 12.
Be2 {[%clk 01:15:08] [%emt 00:04:43]} Bd6 {[%clk 01:22:46] [%emt 00:01:54]} 13.
Nc3 {[%clk 01:13:15] [%emt 00:02:23]} Ne7 {[%clk 01:22:58] [%emt 00:00:18]} 14.
Rc1 {[%clk 01:13:05] [%emt 00:00:40]} Qb6 {[%clk 01:13:42] [%emt 00:09:46]} 15.
Bh5+ {[%clk 00:51:10] [%emt 00:22:24]} g6 {[%clk 01:13:38] [%emt 00:00:35]} 16.
Bf3 {[%clk 00:50:52] [%emt 00:00:48]} Qb7 {[%clk 00:47:27] [%emt 00:26:42]} 17.
Bg4 {[%clk 00:35:34] [%emt 00:15:47]} f5 {[%clk 00:45:49] [%emt 00:02:08]} 18.
Be2 {[%clk 00:31:29] [%emt 00:04:35]} Rhd8 {[%clk 00:43:40] [%emt 00:02:40]} 19.
Qe1 {[%clk 00:12:13] [%emt 00:19:45]} Nc6 {[%clk 00:36:51] [%emt 00:07:19]} 20.
Na4 {[%clk 00:08:27] [%emt 00:04:16]} Bb4 {[%clk 00:28:18] [%emt 00:09:03]} 21.
Bc3 {[%clk 00:03:46] [%emt 00:05:11]} Bd6 {[%clk 00:22:17] [%emt 00:06:31]} 22.
Bb2 {[%clk 00:03:45] [%emt 00:00:31]} Nb4 {[%clk 00:13:11] [%emt 00:09:37]} 23.
Rxc8 {[%clk 00:04:03] [%emt 00:00:12]} Rxc8 {[%clk 00:13:37] [%emt 00:00:03]}
24. f4 {[%clk 00:04:22] [%emt 00:00:11]} Nxa2 {[%clk 00:12:17] [%emt 00:01:50]}
25. Qh4 {[%clk 00:04:47] [%emt 00:00:04]} Kg8 {[%clk 00:08:36] [%emt 00:04:12]}
26. Qf6 {[%clk 00:03:17] [%emt 00:01:59]} Re8 {[%clk 00:08:31] [%emt 00:00:36]}
27. fxe5 {[%clk 00:03:08] [%emt 00:00:39]} Bf8 {[%clk 00:06:25] [%emt 00:02:36]}
28. Bd4 {[%clk 00:03:34] [%emt 00:00:04]} Qc6 {[%clk 00:01:51] [%emt 00:05:05]}
29. Qg5 {[%clk 00:02:39] [%emt 00:01:23]} Rb8 {[%clk 00:02:14] [%emt 00:00:08]}
30. Bd1 {[%clk 00:01:53] [%emt 00:01:16]} Nc1 {[%clk 00:01:03] [%emt 00:01:42]}
31. Bxa7 {[%clk 00:01:39] [%emt 00:00:44]} Rb7 {[%clk 00:01:11] [%emt 00:00:22]}
32. Bd4 {[%clk 00:01:13] [%emt 00:00:55]} Be7 {[%clk 00:01:40]} 33. Qg3 {[%clk
00:00:41] [%emt 00:01:03]} Rxb3 {[%clk 00:00:58] [%emt 00:01:12]} 34. Nb2 {[%clk
00:00:59] [%emt 00:00:12]} Ra3 {[%clk 00:00:34] [%emt 00:00:54]} 35. h4 {[%clk
00:00:57] [%emt 00:00:32]} Kf7 {[%clk 00:00:33] [%emt 00:00:31]} 36. Qf4 {[%clk
00:01:16] [%emt 00:00:11]} Ra8 {[%clk 00:00:35] [%emt 00:00:29]} 37. Qh6 {[%clk
00:01:06] [%emt 00:00:40]} Kg8 {[%clk 00:01:04]} 38. h5 {[%clk 00:01:08] [%emt
00:00:28]} Bf8 {[%clk 00:00:56] [%emt 00:00:37]} 39. Qg5 {[%clk 00:01:32] [%emt
00:00:05]} Bd7 {[%clk 00:00:34] [%emt 00:00:53]} 40. hxg6 {[%clk 00:01:50] [%emt
00:00:12]} Qxg6 {[%clk 00:00:46] [%emt 00:00:18]} 41. Qxg6+ {[%clk 00:02:14]
[%emt 00:00:07]} hxg6 {[%clk 00:01:13] [%emt 00:00:02]} 42. Bf3 {[%clk 00:02:39]
[%emt 00:00:05]} Rc8 {[%clk 00:01:38] [%emt 00:00:05]} 43. Bxd5+ {[%clk
00:03:05] [%emt 00:00:04]} Kh7 {[%clk 00:02:05] [%emt 00:00:04]} 44. Bc4 {[%clk
00:02:03] [%emt 00:01:31]} Rxc4 {[%clk 00:00:38] [%emt 00:01:57]} 45. Nxc4
{[%clk 00:02:29] [%emt 00:00:04]} Ne2+ {[%clk 00:00:32] [%emt 00:00:36]} 46. Kf2
{[%clk 00:02:54] [%emt 00:00:05]} Bb5 {[%clk 00:00:53] [%emt 00:00:09]} 47. Rh1+
{[%clk 00:03:16] [%emt 00:00:08]} Kg8 {[%clk 00:01:19] [%emt 00:00:04]} 48. Nd6
{[%clk 00:03:14] [%emt 00:00:32]} Bd3 {[%clk 00:01:40] [%emt 00:00:10]} 49. Ba1
{[%clk 00:03:14] [%emt 00:00:30]} Be7 {[%clk 00:01:42] [%emt 00:00:28]} 50. e6
{[%clk 00:03:07] [%emt 00:00:36]} 1-0

[Site "Europe Echecs"]

[Event "Saint Louis Masters"]
[Date "2024.12.04"]
[White "Woodward, Andy"]
[Black "Saric, Ivan"]
[WhiteElo "2530"]
[BlackElo "2669"]
[Round "3.5"]
[Result "1/2-1/2"]
[TimeControl "5400+30"]

1. d4 {[%clk 01:30:54] [%emt 00:00:05]} d6 {[%clk 01:30:50] [%emt 00:00:11]} 2.
e4 {[%clk 01:27:36] [%emt 00:03:47]} Nf6 {[%clk 01:31:17] [%emt 00:00:04]} 3.
Bd3 {[%clk 01:26:39] [%emt 00:01:27]} e5 {[%clk 01:30:39] [%emt 00:01:08]} 4. c3
{[%clk 01:20:58] [%emt 00:06:11]} Nc6 {[%clk 01:16:15] [%emt 00:14:54]} 5. Nf3
{[%clk 01:17:14] [%emt 00:04:13]} g6 {[%clk 01:15:50] [%emt 00:00:57]} 6. O-O
{[%clk 01:08:40] [%emt 00:09:03]} Bg7 {[%clk 01:15:52] [%emt 00:00:29]} 7. dxe5
{[%clk 01:08:44] [%emt 00:00:26]} Nxe5 {[%clk 01:15:19] [%emt 00:01:03]} 8. Nxe5
{[%clk 01:09:03] [%emt 00:00:11]} dxe5 {[%clk 01:15:46] [%emt 00:00:04]} 9. Bg5
{[%clk 01:01:49] [%emt 00:07:43]} h6 {[%clk 01:13:52] [%emt 00:02:24]} 10. Bh4
{[%clk 01:01:23] [%emt 00:00:55]} Qe7 {[%clk 01:09:28] [%emt 00:04:55]} 11. Nd2
{[%clk 01:00:27] [%emt 00:01:26]} Bd7 {[%clk 01:07:58] [%emt 00:02:00]} 12. Nc4
{[%clk 00:48:12] [%emt 00:12:45]} Qe6 {[%clk 00:34:57] [%emt 00:33:31]} 13. Qb3
{[%clk 00:38:14] [%emt 00:10:28]} O-O-O {[%clk 00:29:29] [%emt 00:05:58]} 14.
Ne3 {[%clk 00:35:14] [%emt 00:03:30]} Qxb3 {[%clk 00:28:41] [%emt 00:01:18]} 15.
axb3 {[%clk 00:35:37] [%emt 00:00:07]} a6 {[%clk 00:27:54] [%emt 00:01:17]} 16.
f3 {[%clk 00:31:32] [%emt 00:04:34]} Be6 {[%clk 00:26:18] [%emt 00:02:06]} 17.
Bc4 {[%clk 00:30:30] [%emt 00:01:32]} Rhe8 {[%clk 00:26:25] [%emt 00:00:23]} 18.
Rfd1 {[%clk 00:28:14] [%emt 00:02:46]} Rxd1+ {[%clk 00:26:50] [%emt 00:00:05]}
19. Rxd1 {[%clk 00:28:35] [%emt 00:00:09]} Nd7 {[%clk 00:26:35] [%emt 00:00:45]}
20. Bxe6 {[%clk 00:26:21] [%emt 00:02:44]} Rxe6 {[%clk 00:27:00] [%emt
00:00:05]} 21. b4 {[%clk 00:26:41] [%emt 00:00:09]} Bf8 {[%clk 00:26:31] [%emt
00:00:59]} 22. Kf1 {[%clk 00:25:55] [%emt 00:01:16]} h5 {[%clk 00:25:29] [%emt
00:01:33]} 23. Nd5 {[%clk 00:24:33] [%emt 00:01:52]} Rd6 {[%clk 00:24:45] [%emt
00:01:14]} 24. Ke2 {[%clk 00:24:13] [%emt 00:00:50]} c6 {[%clk 00:24:54] [%emt
00:00:21]} 25. Ne3 {[%clk 00:24:19] [%emt 00:00:24]} Rxd1 {[%clk 00:25:18] [%emt
00:00:07]} 26. Kxd1 {[%clk 00:24:44] [%emt 00:00:05]} b5 {[%clk 00:24:59] [%emt
00:00:49]} 27. Kc2 {[%clk 00:24:02] [%emt 00:01:11]} Bh6 {[%clk 00:25:06] [%emt
00:00:23]} 28. Nf1 {[%clk 00:24:15] [%emt 00:00:17]} Kc7 {[%clk 00:25:11] [%emt
00:00:25]} 29. Be7 {[%clk 00:22:21] [%emt 00:02:23]} Nb6 {[%clk 00:23:04] [%emt
00:02:38]} 30. b3 {[%clk 00:21:40] [%emt 00:01:11]} Nc8 {[%clk 00:22:21] [%emt
00:01:13]} 31. Bc5 {[%clk 00:21:46] [%emt 00:00:24]} Kd7 {[%clk 00:22:30] [%emt
00:00:21]} 32. Kd3 {[%clk 00:22:04] [%emt 00:00:12]} Nd6 {[%clk 00:22:28] [%emt
00:00:33]} 33. Ng3 {[%clk 00:20:50] [%emt 00:01:43]} Bf4 {[%clk 00:22:15] [%emt
00:00:43]} 34. Nf1 {[%clk 00:20:58] [%emt 00:00:22]} Ke6 {[%clk 00:22:15] [%emt
00:00:31]} 35. Be3 {[%clk 00:17:53] [%emt 00:03:34]} Bxe3 {[%clk 00:21:37] [%emt
00:01:08]} 36. Nxe3 {[%clk 00:18:20] [%emt 00:00:03]} f6 {[%clk 00:13:09] [%emt
00:08:59]} 37. Nd1 {[%clk 00:18:03] [%emt 00:00:47]} Nb7 {[%clk 00:12:18] [%emt
00:01:21]} 38. Kd2 {[%clk 00:17:43] [%emt 00:00:49]} a5 {[%clk 00:12:18] [%emt
00:00:31]} 39. bxa5 {[%clk 00:18:03] [%emt 00:00:10]} Nxa5 {[%clk 00:12:45]
[%emt 00:00:03]} 40. b4 {[%clk 00:18:05] [%emt 00:00:27]} Nc4+ {[%clk 00:13:08]
[%emt 00:00:07]} 41. Ke2 {[%clk 00:17:38] [%emt 00:00:57]} f5 {[%clk 00:12:59]
[%emt 00:00:39]} 42. g3 {[%clk 00:16:19] [%emt 00:01:49]} Kf6 {[%clk 00:09:08]
[%emt 00:04:22]} 43. Nf2 {[%clk 00:15:59] [%emt 00:00:49]} Nd6 {[%clk 00:08:33]
[%emt 00:01:05]} 44. Ke3 {[%clk 00:16:01] [%emt 00:00:28]} Ke6 {[%clk 00:08:04]
[%emt 00:00:59]} 45. Nd3 {[%clk 00:15:10] [%emt 00:01:20]} fxe4 {[%clk 00:08:18]
[%emt 00:00:16]} 46. fxe4 {[%clk 00:15:34] [%emt 00:00:06]} Nc4+ {[%clk
00:08:26] [%emt 00:00:22]} 47. Ke2 {[%clk 00:15:59] [%emt 00:00:05]} g5 {[%clk
00:08:36] [%emt 00:00:20]} 48. Nc5+ {[%clk 00:16:22] [%emt 00:00:08]} Ke7 {[%clk
00:09:00] [%emt 00:00:06]} 49. h3 {[%clk 00:16:38] [%emt 00:00:13]} Nd6 {[%clk
00:06:28] [%emt 00:03:03]} 50. Ke3 {[%clk 00:17:02] [%emt 00:00:07]} Nc4+ {[%clk
00:05:25] [%emt 00:01:33]} 1/2-1/2

[Site "Europe Echecs"]